bitfinex/quotes_ETHUSD_20250319
["timestamp","ask_amount","ask_price","bid_price","bid_amount"]
[1742380941617,10.15464,1969.6,1969.3,3.0]
[1742380941798,5.84052,1969.5,1969.2,3.0]
[1742380941993,5.07769,1969.4,1969.1,5.07826]
[1742380942195,5.07806,1969.3,1968.9,5.0789]
[1742380942399,0.763,1969.5,1968.7,12.88676]
[1742380942400,4.78932314,1969.5,1968.7,12.88676]
[1742380942622,4.78932314,1969.5,1968.8,5.07908]
[1742380942623,5.07829,1969.2,1968.8,5.07908]
[1742380942817,5.07849,1969.1,1968.8,5.07908]
[1742380943117,5.07849,1969.1,1968.7,12.88662]
[1742380943307,5.07827,1969.2,1968.8,5.07913]
[1742380943704,10.1567,1969.2,1968.8,5.07909]
[1742380944223,5.07797,1969.3,1968.9,5.07889]
[1742380944421,5.07771,1969.4,1969.1,5.07844]
[1742380944624,4.78932314,1969.5,1968.9,5.07881]
[1742380944625,0.763,1969.5,1969.2,5.07807]
[1742380945110,0.763,1969.5,1969.2,10.1561]
[1742380945311,5.07708,1969.7,1969.3,5.07783]
[1742380945503,10.15463,1969.6,1969.2,5.07811]
[1742380945703,5.07728,1969.6,1969.2,5.07811]
[1742380945916,5.07728,1969.6,1969.2,10.15616]
[1742380946297,5.07692,1969.7,1969.3,5.07788]
[1742380946493,0.98961431,1969.7,1969.1,5.07834]
[1742380946699,5.07754,1969.5,1969.1,8.07834]
[1742380946900,5.07773,1969.4,1969.1,3.0]
[1742380947712,4.02632314,1969.5,1968.9,5.07897]
[1742380947713,0.7695,1969.3,1968.9,5.07897]
[1742380947900,5.0783,1969.2,1968.8,5.07923]
[1742380948231,17.556,1969.1,1969.0,5.07872]
[1742380948418,17.556,1970.0,1969.7,5.0769]
[1742380949011,17.556,1970.0,1969.7,10.15372]
[1742380949399,17.556,1970.0,1969.7,5.07682]
[1742380949622,22.63216,1970.0,1969.7,5.07682]
[1742380949829,30.479289,1970.0,1969.6,5.07713]
[1742380950010,25.402979,1970.0,1969.6,5.07713]
[1742380950207,25.403009,1970.0,1969.7,5.07689]
[1742380950418,20.326819,1970.0,1969.4,8.07766]
[1742380950726,20.326819,1970.0,1969.7,5.07674]
[1742380950937,25.403129,1970.0,1969.6,5.07716]
[1742380951101,30.479489,1970.0,1969.6,5.07716]
[1742380951729,5.07676,1969.8,1969.4,13.15513]
[1742380952233,8.8778289,1969.9,1969.5,5.07738]
[1742380952440,8.8778289,1969.9,1969.5,10.15466]
[1742380952735,0.7534,1969.9,1969.5,5.07729]
[1742380952935,0.7534,1969.9,1969.6,5.07708]
[1742380953230,26.65858314,1970.0,1969.7,5.07687]
[1742380953231,17.556,1970.0,1969.7,5.07687]
[1742380953622,10.15389,1969.7,1969.3,5.07773]
[1742380953824,5.87172,1969.7,1969.3,5.07773]
[1742380954140,10.94881,1969.7,1969.3,5.07773]
[1742380954328,5.87172,1969.7,1969.3,5.07773]
[1742380954640,5.87172,1969.7,1969.2,8.07814]
[1742380954838,5.0776,1969.5,1969.2,3.0]
[1742380955037,5.0776,1969.5,1969.1,12.88729]
[1742380955038,5.0777,1969.4,1969.1,12.88729]
[1742380955207,5.0777,1969.4,1969.0,12.0865]
[1742380955536,5.0777,1969.4,1969.1,5.07836]
[1742380955839,6.093214,1969.4,1969.1,5.07844]
[1742380956006,10.15501,1969.5,1969.1,5.07838]
[1742380956320,5.07772,1969.4,1969.1,5.07838]
[1742380956523,10.15559,1969.4,1969.0,8.07868]
[1742380956746,5.07772,1969.4,1969.0,13.1572]
[1742380956950,5.07772,1969.4,1969.1,5.07845]
[1742380957381,5.07772,1969.4,1969.1,5.07844]
[1742380957581,17.556,1969.3,1969.1,5.07844]
[1742380957872,17.556,1969.3,1968.9,5.86434]
[1742380957873,22.63407,1969.3,1968.9,10.94322]
[1742380958076,22.63407,1969.3,1969.0,5.07869]
[1742380958077,17.556,1969.3,1969.0,5.07869]
[1742380958273,17.556,1969.3,1969.1,5.07843]
[1742380958482,17.556,1969.3,1969.0,5.07863]
[1742380958977,17.556,1969.3,1969.1,5.07845]
[1742380959353,17.556,1969.3,1969.0,5.07863]
[1742380959964,17.556,1969.3,1969.0,10.15726]
[1742380960163,17.556,1969.3,1969.1,5.07844]
[1742380960489,17.556,1969.3,1969.2,5.0782]
[1742380962778,17.556,1969.3,1969.2,16.3852]
[1742380963093,17.557,1969.9,1969.8,5.07653]
[1742380963596,17.557,1969.9,1969.7,5.07685]
[1742380964096,26.50394279,1969.9,1969.6,5.07713]
[1742380964474,31.58050279,1969.9,1969.5,8.07725]
[1742380964656,5.07665,1969.8,1969.5,8.07725]
[1742380964859,26.50394279,1969.9,1969.5,8.07725]
[1742380965193,26.50410279,1969.9,1969.5,5.07743]
[1742380965362,29.66213107,1969.9,1969.6,3.0]
[1742380965560,29.66213107,1969.9,1969.6,8.07713]
[1742380965991,8.94760279,1969.7,1969.4,5.07765]
[1742380966368,3.87054279,1969.7,1969.4,5.07765]
[1742380966689,3.87054279,1969.7,1969.4,5.07754]
[1742380966893,3.87054279,1969.7,1969.5,5.07731]
[1742380967499,8.94746279,1969.7,1969.3,15.08194]
[1742380967800,5.07722,1969.6,1969.3,15.08181]
[1742380968804,27.90588507,1969.7,1969.3,8.07781]
[1742380969002,5.07729,1969.6,1969.3,8.07781]
[1742380969183,5.07729,1969.6,1969.3,3.0]
[1742380969385,5.07724,1969.6,1969.3,8.07784]
[1742380970195,28.69751507,1969.7,1969.4,5.07759]
[1742380970414,27.29509279,1969.7,1969.4,5.07759]
[1742380971198,21.42654279,1969.7,1969.4,5.07757]
[1742380971575,21.42654279,1969.7,1969.4,10.15509]
[1742380971876,21.42654279,1969.7,1969.5,5.07742]
[1742380972085,17.556,1969.7,1969.5,5.07732]
[1742380972395,17.556,1969.7,1969.5,5.07725]
[1742380972594,17.556,1969.7,1969.6,5.07717]
[1742380972786,17.556,1969.7,1969.5,5.07725]
[1742380972989,21.42654279,1969.7,1969.5,5.07725]
[1742380973193,21.42654279,1969.7,1969.5,10.15452]
[1742380973499,17.556,1969.7,1969.6,5.07717]
[1742380974201,4.7806901,1970.3,1970.1,5.07582]
[1742380974402,21.42654279,1970.3,1970.0,5.07602]
[1742380974609,21.42654279,1970.3,1970.0,10.15204]
[1742380974769,17.556,1970.3,1970.1,5.07579]
[1742380975385,3.87054279,1970.2,1970.1,5.07573]
[1742380976027,3.87054279,1970.2,1970.0,5.07611]
[1742380976506,3.87054279,1970.2,1969.6,11.3256]
[1742380976507,9.79088,1970.0,1969.6,12.85175]
[1742380976676,3.87054279,1969.7,1969.6,3.0]
[1742380976880,3.87054279,1969.9,1969.6,8.07709]
[1742380977080,3.87054279,1969.9,1969.7,5.07678]
[1742380977704,3.87054279,1969.9,1969.6,8.07709]
[1742380977705,3.87054279,1969.9,1969.6,8.07707]
[1742380977916,3.87054279,1969.7,1969.5,5.07739]
[1742380978204,8.94747279,1969.7,1969.4,5.07761]
[1742380978396,8.94757279,1969.7,1969.3,0.7977]
[1742380978592,8.94757279,1969.7,1969.4,5.07767]
[1742380979604,3.87054279,1969.7,1969.4,5.07767]
[1742380979819,3.87054279,1969.5,1969.1,5.07829]
[1742380979978,3.87054279,1969.3,1969.1,5.07829]
[1742380980492,27.71016,1969.5,1969.2,5.07796]
[1742380980493,3.87054279,1969.4,1969.2,5.07796]
[1742380980806,3.87054279,1969.4,1969.1,5.07843]
[1742380981036,3.87054279,1969.4,1968.9,5.85277]
[1742380981037,3.87054279,1969.2,1968.9,5.85277]
[1742380981183,3.87054279,1969.2,1968.9,5.07897]
[1742380981507,8.94877279,1969.2,1968.9,5.07897]
[1742380981712,3.87054279,1969.2,1968.9,13.15777]
[1742380981884,3.87054279,1969.2,1968.9,3.0]
[1742380982080,8.94884279,1969.2,1968.9,8.07889]
[1742380982713,3.87054279,1969.2,1968.9,8.07882]
[1742380982919,3.87054279,1969.2,1969.0,5.07862]
[1742380984221,7.461144,1968.9,1968.4,5.87958]
[1742380984421,5.05859707,1969.2,1966.2,0.24743494]
[1742380984422,0.8046,1967.9,1966.2,0.24743494]
[1742380984623,3.87054279,1966.6,1966.1,0.01]
[1742380984793,0.8046,1967.1,1966.5,0.7635]
[1742380984794,17.556,1966.8,1966.5,0.7635]
[1742380985385,3.87054279,1966.6,1966.5,0.7635]
[1742380985584,3.87054279,1966.6,1966.4,5.08527]
[1742380985920,17.556,1966.8,1966.7,5.08465]
[1742380986090,18.3597,1967.4,1966.8,3.0]
[1742380986420,3.87054279,1967.0,1966.8,8.08436]
[1742380986602,3.87054279,1967.0,1966.9,5.08414]
[1742380986988,17.564,1967.4,1967.0,8.08388]
[1742380986989,3.87054279,1967.2,1967.0,8.08388]
[1742380987300,17.564,1967.5,1967.0,5.08382]
[1742380987607,4.02854664,1967.3,1967.1,5.08361]
[1742380987917,4.02854664,1967.3,1967.1,5.08352]
[1742380988083,4.02854664,1967.3,1966.4,1.337527]
[1742380988417,4.02854664,1967.0,1966.6,10.16965]
[1742380988605,4.02854664,1967.0,1966.7,5.08456]
[1742380988918,4.02854664,1967.0,1966.7,5.08449]
[1742380989089,4.02854664,1967.0,1966.4,5.0852]
[1742380989289,4.02854664,1966.7,1966.6,5.08491]
[1742380989598,21.59654664,1966.7,1966.6,5.08491]
[1742380990490,17.568,1966.7,1966.6,5.08491]
[1742380990688,17.568,1966.7,1966.6,8.08491]
[1742380990906,17.568,1966.7,1966.6,8.85571]
[1742380991516,17.568,1966.7,1966.6,9.40571]
[1742380991724,21.59654664,1967.3,1967.2,5.08336]
[1742380992815,21.59654664,1967.3,1967.0,5.08385]
[1742380993523,5.08346,1967.2,1966.8,12.08229]
[1742380993719,4.02854664,1967.0,1966.6,5.85557]
[1742380993922,5.08414,1966.9,1966.5,5.08516]
[1742380994221,4.02854664,1966.7,1966.5,5.08516]
[1742380994404,4.02854664,1966.7,1966.5,5.08506]
[1742380994612,4.02854664,1966.7,1966.4,5.08543]
[1742380994613,4.02854664,1966.7,1966.4,5.08537]
[1742380994800,9.11323664,1966.7,1966.3,5.08567]
[1742380995002,4.02854664,1966.4,1966.3,5.08567]
[1742380995202,4.02854664,1966.4,1966.2,5.08593]
[1742380995397,4.02854664,1966.4,1966.2,3.0]
[1742380995630,4.02854664,1966.4,1966.2,8.08583]
[1742380996218,4.02854664,1966.4,1966.2,13.17158]
[1742380996387,4.02854664,1966.4,1966.3,5.08569]
[1742380996587,4.02854664,1966.8,1966.6,5.08491]
[1742380996787,4.02854664,1966.8,1966.6,5.08468]
[1742380997287,4.02854664,1966.8,1966.6,5.08489]
[1742380997491,4.02854664,1966.8,1966.6,5.0848]
[1742380997688,4.02854664,1966.8,1966.7,5.08465]
[1742380999528,4.02854664,1967.1,1966.7,5.08465]
[1742380999721,4.02854664,1967.1,1967.0,5.08388]
[1742381000604,4.02854664,1967.1,1967.0,8.08388]
[1742381001005,4.02854664,1967.1,1967.0,8.87688]
[1742381001317,4.02854664,1967.4,1967.3,5.0831]
[1742381001929,17.576,1967.5,1967.4,5.08285]
[1742381002421,17.576,1967.5,1967.4,8.08285]
[1742381003194,17.576,1967.5,1967.2,3.0]
[1742381003422,9.11141664,1967.4,1967.2,3.0]
[1742381003595,4.02854664,1967.4,1967.2,3.0]
[1742381003903,9.11148664,1967.4,1967.2,3.0]
[1742381004103,5.0832,1967.3,1967.0,3.0]
[1742381004330,4.02854664,1967.1,1966.9,10.16802]
[1742381004908,4.02854664,1967.1,1967.0,8.08388]
[1742381005305,4.02854664,1967.4,1967.0,8.08373]
[1742381005548,9.11153664,1967.4,1967.0,8.08373]
[1742381005838,4.02854664,1967.1,1967.0,3.0]
[1742381006046,4.02854664,1967.1,1967.0,8.08388]
[1742381006596,4.02854664,1967.1,1967.0,3.0]
[1742381007209,4.02854664,1967.1,1967.0,8.08388]
[1742381009354,4.02854664,1967.4,1967.3,5.08308]
[1742381010508,4.02854664,1967.4,1967.2,5.08325]
[1742381010703,4.02854664,1967.4,1967.2,10.16646]
[1742381010935,4.02854664,1967.4,1967.3,5.0831]
[1742381012019,4.02854664,1967.4,1967.2,5.08321]
[1742381012233,4.02854664,1967.4,1967.0,5.0837]
[1742381012432,4.02854664,1967.1,1967.0,8.08388]
[1742381013017,17.576,1967.5,1967.3,5.08294]
[1742381013219,17.576,1967.5,1967.3,10.1659]
[1742381013638,4.02854664,1967.4,1967.3,10.1659]
[1742381013855,4.02854664,1967.4,1967.3,13.1659]
[1742381014463,4.02854664,1967.4,1967.3,8.08294]
[1742381016124,21.60354664,1967.7,1967.5,5.08236]
[1742381016467,4.02854664,1968.0,1967.9,5.08155]
[1742381016753,4.02854664,1968.0,1967.8,8.08171]
[1742381017131,17.575,1968.1,1968.0,5.0813]
[1742381017471,21.45236223,1968.1,1968.0,8.0813]
[1742381017825,21.45236223,1968.1,1968.0,3.0]
[1742381018166,21.45236223,1968.1,1967.9,5.0814]
[1742381018650,21.45236223,1968.1,1968.0,5.0813]
[1742381019117,21.45236223,1968.1,1968.0,8.0813]
[1742381021052,21.45236223,1968.1,1967.9,3.0]
[1742381021256,21.45236223,1968.1,1967.9,8.08153]
[1742381021556,21.45236223,1968.1,1967.9,5.08153]
[1742381022056,21.45236223,1968.1,1968.0,5.0813]
[1742381023055,21.45236223,1968.1,1967.9,5.08153]
[1742381023266,21.45236223,1968.1,1967.9,5.0814]
[1742381023748,21.45236223,1968.1,1967.9,5.08143]
[1742381023942,21.45236223,1968.1,1967.8,8.08179]
[1742381024142,3.87736223,1967.9,1967.8,8.08179]
[1742381024532,3.87736223,1967.9,1967.6,3.0]
[1742381024726,3.87736223,1967.7,1967.5,12.06658]
[1742381024927,3.87736223,1967.7,1967.4,5.08284]
[1742381025158,3.87736223,1967.5,1967.4,5.08284]
[1742381026057,3.87736223,1967.5,1967.4,8.08284]
[1742381026669,3.87736223,1967.5,1967.4,5.08284]
[1742381027170,3.87736223,1967.5,1967.4,8.08284]
[1742381027528,0.7782,1968.0,1967.5,8.08259]
[1742381027529,3.87736223,1967.7,1967.5,8.08259]
[1742381027729,3.87736223,1967.7,1967.6,5.08233]
[1742381028269,3.87736223,1967.9,1967.8,5.08181]
[1742381029261,3.87736223,1967.9,1967.8,8.08181]
[1742381030084,3.87736223,1967.9,1967.8,5.08181]
[1742381031033,3.87736223,1967.9,1967.8,8.08181]
[1742381033390,17.575,1968.1,1967.9,8.88272]
[1742381033549,17.575,1968.1,1968.0,5.0813]
[1742381035059,21.45236223,1968.1,1968.0,8.0813]
[1742381035280,17.575,1968.1,1968.0,8.0813]
[1742381035441,3.87736223,1968.3,1968.2,8.08078]
[1742381035771,3.87736223,1968.3,1968.2,15.05878]
[1742381040280,3.87736223,1968.5,1968.4,5.08001]
[1742381041470,3.87736223,1968.5,1968.3,5.08033]
[1742381042083,3.87736223,1968.5,1968.4,5.08026]
[1742381042872,3.87736223,1968.5,1968.4,8.08026]
[1742381043076,21.44736223,1968.7,1968.6,5.07975]
[1742381043374,3.87736223,1968.7,1968.6,5.07975]
[1742381043580,3.87736223,1968.8,1968.7,8.07924]
[1742381045155,3.87736223,1968.8,1968.7,3.0]
[1742381045472,3.0,1968.7,1968.5,6.971]
[1742381045671,3.87736223,1968.6,1968.5,12.05076]
[1742381045878,3.87736223,1968.8,1968.7,5.07945]
[1742381046267,3.87736223,1968.8,1968.7,8.07945]
[1742381046888,3.87736223,1968.8,1968.5,12.05086]
[1742381047057,3.87736223,1968.6,1968.5,15.05086]
[1742381047958,3.87736223,1968.9,1968.7,5.07926]
[1742381048482,3.87736223,1968.9,1968.8,5.07923]
[1742381049196,3.87736223,1968.9,1968.8,8.07923]
[1742381052187,17.567,1969.0,1968.8,8.07923]
[1742381052399,21.44436223,1969.0,1968.9,5.07897]
[1742381053285,17.567,1969.0,1968.9,8.07897]
[1742381053487,17.567,1969.0,1968.9,15.04297]
[1742381054191,3.87736223,1969.2,1969.1,5.07846]
[1742381054908,3.87736223,1969.2,1969.1,8.07846]
[1742381055059,0.8275,1969.7,1969.1,3.0]
[1742381055259,23.46664,1969.7,1969.3,5.07783]
[1742381055495,3.87736223,1969.4,1969.3,12.04083]
[1742381055993,3.87736223,1969.4,1969.3,6.963]
[1742381056294,3.87736223,1969.4,1969.3,12.04094]
[1742381056797,3.87736223,1969.4,1969.3,6.963]
[1742381060801,3.87736223,1969.4,1969.3,12.04094]
[1742381061322,3.49479101,1969.4,1969.3,12.04094]
[1742381062190,3.49479101,1969.4,1969.3,6.957]
[1742381062191,8.57249101,1969.4,1969.3,6.957]
[1742381062436,3.49479101,1969.4,1969.3,6.957]
[1742381063374,3.49479101,1969.4,1969.3,12.03494]
[1742381063574,3.49479101,1969.4,1969.3,15.03494]
[1742381064782,22.63867,1969.8,1969.5,5.07718]
[1742381064783,17.562,1969.8,1969.5,5.07718]
[1742381064985,3.49479101,1969.6,1969.5,5.07718]
[1742381065388,3.49479101,1969.6,1969.4,5.87458]
[1742381065820,3.49479101,1969.6,1969.5,5.07743]
[1742381066918,3.49479101,1969.6,1969.5,12.03143]
[1742381067308,3.49479101,1969.6,1969.5,15.03143]
[1742381067609,0.50757403,1970.2,1969.8,5.0765]
[1742381067610,5.07575,1970.2,1969.8,5.0765]
[1742381067992,5.86868,1970.3,1969.9,17.10451]
[1742381068190,5.86868,1970.3,1969.9,12.02825]
[1742381068391,10.94422,1970.3,1969.9,12.02825]
[1742381068597,21.05179101,1970.4,1970.0,0.8115]
[1742381068922,3.49479101,1970.1,1970.0,12.83964]
[1742381069398,3.49479101,1970.1,1970.0,14.26584641]
[1742381069600,5.07383,1970.9,1970.2,5.07553]
[1742381069810,3.49479101,1970.4,1970.3,8.07513]
[1742381070009,3.49479101,1970.4,1970.3,9.951]
[1742381070212,3.49479101,1970.4,1970.0,0.8115]
[1742381070213,5.07557,1970.3,1970.0,6.951]
[1742381070521,5.07548,1970.3,1970.1,3.0]
[1742381070706,3.49479101,1970.1,1970.0,9.951]
[1742381070918,3.49479101,1970.1,1970.0,15.02714]
[1742381071112,3.49479101,1970.3,1970.1,5.07568]
[1742381071619,3.49479101,1970.3,1970.0,20.10296]
[1742381071823,3.49479101,1970.3,1970.1,5.07567]
[1742381072022,5.75654912,1971.4,1970.2,5.07562]
[1742381072023,5.07437,1970.7,1970.2,5.07562]
[1742381072320,3.49479101,1970.5,1970.4,5.07509]
[1742381072624,10.14784,1970.9,1970.5,5.07471]
[1742381072794,3.49479101,1970.6,1970.4,12.02306]
[1742381073196,3.49479101,1970.6,1970.4,6.948]
[1742381073403,3.49479101,1970.6,1970.4,12.02298]
[1742381073694,3.49479101,1970.6,1970.5,5.07485]
[1742381074090,22.63058,1971.0,1970.5,5.07485]
[1742381074091,17.557,1971.0,1970.5,3.7574]
[1742381074392,3.49479101,1970.8,1970.7,5.07433]
[1742381074614,17.557,1971.0,1970.9,5.07382]
[1742381074829,5.07281,1971.3,1970.9,15.01966]
[1742381075006,3.49479101,1971.1,1971.0,5.07347]
[1742381075201,3.86427302,1971.1,1970.9,7.747]
[1742381075602,5.07371,1971.0,1970.9,6.945]
[1742381075811,8.93768302,1971.1,1970.9,6.945]
[1742381076006,3.86427302,1971.1,1970.9,6.945]
[1742381076628,3.86427302,1971.1,1970.9,12.0187]
[1742381076826,5.07258,1971.4,1971.1,5.07322]
[1742381077029,0.1177032,1973.5,1971.9,3.7568]
[1742381077205,5.06834,1973.1,1972.8,0.55]
[1742381077409,8.93303302,1972.9,1972.7,6.943]
[1742381077732,3.86427302,1972.9,1972.7,6.943]
[1742381078033,0.8921032,1973.5,1972.9,5.0685]
[1742381078034,1.20663426,1973.4,1972.9,5.0685]
[1742381078328,5.06909,1972.8,1972.4,12.01185]
[1742381078529,5.06936,1972.7,1972.4,6.942]
[1742381078826,5.06936,1972.7,1972.4,12.01188]
[1742381079028,3.86427302,1972.8,1972.3,8.85291]
[1742381079029,3.86427302,1972.8,1972.3,0.7828]
[1742381079328,10.13496,1973.4,1973.0,5.06827]
[1742381079504,1.013496,1973.3,1973.1,6.942]
[1742381079699,5.0679,1973.2,1973.1,6.942]
[1742381079940,9.94543902,1973.3,1973.1,6.942]
[1742381080331,9.94547902,1973.3,1973.1,6.942]
[1742381081128,5.06742,1973.4,1973.1,6.942]
[1742381081317,0.1177032,1973.5,1973.1,6.942]
[1742381081526,0.1177032,1973.5,1973.1,12.01007]
[1742381081831,0.1177032,1973.5,1973.2,8.06786]
[1742381082034,0.1177032,1973.5,1973.4,6.44899]
[1742381082207,0.1177032,1973.5,1973.4,3.8316]
[1742381082408,0.1177032,1973.5,1973.4,3.0]
[1742381082409,5.1848332,1973.5,1973.4,3.0]
[1742381082626,5.00716754,1973.5,1972.9,5.06858]
[1742381082825,3.86427302,1973.3,1972.9,6.935]
[1742381083133,5.06818,1973.1,1972.9,6.935]
[1742381083298,5.06808,1973.2,1972.9,6.935]
[1742381083732,5.06828,1973.1,1972.9,6.935]
[1742381083939,10.13616,1973.2,1972.9,6.935]
[1742381084116,11.5362433,1973.2,1972.9,6.935]
[1742381084316,6.4681233,1973.2,1972.8,5.06883]
[1742381084521,11.5362033,1973.2,1972.9,6.934]
[1742381084721,5.0682,1973.1,1972.9,6.934]
[1742381085106,6.4679533,1973.2,1972.9,6.934]
[1742381085307,5.06822,1973.1,1972.9,6.934]
[1742381085507,6.4679533,1973.2,1972.9,6.934]
[1742381086138,6.4680333,1973.2,1972.9,6.934]
[1742381086536,11.5361833,1973.2,1972.9,6.934]
[1742381086733,5.06826,1973.1,1972.9,6.934]
[1742381087234,6.4680333,1973.2,1972.9,6.934]
[1742381087403,15.40039632,1973.2,1972.9,6.934]
[1742381087604,5.06842,1973.0,1972.8,0.55]
[1742381087908,6.60827963,1973.1,1972.9,6.93]
[1742381088118,1.54003963,1973.1,1972.9,6.93]
[1742381089039,21.51497622,1973.5,1973.2,5.0678]
[1742381089214,17.6507032,1973.5,1973.2,5.0678]
[1742381089416,17.6507032,1973.5,1973.3,6.929]
[1742381090644,5.06739,1973.4,1973.3,6.929]
[1742381090844,7.66714723,1973.4,1973.3,6.929]
[1742381091044,5.06839,1973.1,1972.7,5.06907]
[1742381091339,8.93266302,1973.1,1972.8,6.928]
[1742381091514,5.06791,1973.2,1972.8,11.99684]
[1742381091714,10.13555,1973.3,1972.9,8.06852]
[1742381091915,1.013555,1973.2,1972.9,8.06852]
[1742381092645,6.081505,1973.2,1972.9,8.06852]
[1742381093142,17.6507032,1973.5,1973.0,0.7809]
[1742381093441,17.6507032,1973.5,1973.4,8.06739]
[1742381093646,17.6507032,1973.5,1973.4,14.99239]
[1742381093849,21.51497622,1973.5,1973.4,9.925]
[1742381094151,5.06748,1973.4,1973.1,3.0]
[1742381094468,3.86427302,1973.3,1973.1,3.0]
[1742381094639,7.72572562,1973.4,1973.1,8.06815]
[1742381094985,9.04913622,1973.5,1973.2,5.06783]
[1742381095119,3.98197622,1973.5,1973.2,5.06783]
[1742381095444,3.98197622,1973.5,1973.2,5.06776]
[1742381095744,3.98197622,1973.5,1973.2,10.13554]
[1742381095956,3.98197622,1973.5,1973.4,5.06739]
[1742381095957,0.1177032,1973.5,1973.4,5.06739]
[1742381096160,0.1177032,1973.5,1973.4,14.99039]
[1742381096382,0.1177032,1973.5,1973.4,16.34469]
[1742381096687,0.1177032,1973.5,1973.4,8.87169]
[1742381096991,0.1177032,1973.5,1973.4,15.54039]
[1742381098776,0.1177032,1973.5,1973.4,16.32389]
[1742381099275,3.2e-06,1973.5,1973.4,16.32389]
[1742381099637,3.2e-06,1973.5,1973.4,9.40089]
[1742381099844,3.2e-06,1973.5,1973.4,16.32089]
[1742381100880,3.2e-06,1973.5,1973.4,12.76989]
[1742381101179,3.2e-06,1973.5,1973.4,6.919]
[1742381101390,3.2e-06,1973.5,1973.4,11.98639]
[1742381101750,3.2e-06,1973.5,1973.4,14.98639]
[1742381102048,3.2e-06,1973.5,1973.4,15.53639]
[1742381103383,3.2e-06,1973.5,1973.4,14.98639]
[1742381103800,3.2e-06,1973.5,1973.0,0.8002]
[1742381103980,3.86427622,1973.5,1973.3,5.06764]
[1742381104165,3.86427622,1973.5,1973.4,5.06739]
[1742381105277,3.86427622,1973.5,1973.2,8.06788]
[1742381105598,3.86427622,1973.5,1973.2,5.06785]
[1742381105798,3.86427622,1973.5,1973.3,5.06763]
[1742381106097,3.86427622,1973.5,1973.2,5.06779]
[1742381106294,3.86427622,1973.5,1973.2,5.06776]
[1742381106602,3.86427302,1973.3,1973.2,3.0]
[1742381107364,3.2e-06,1973.5,1973.4,8.06739]
[1742381107562,3.2e-06,1973.5,1973.4,8.61739]
[1742381108750,3.2e-06,1973.5,1973.4,8.06739]
[1742381114704,3.2e-06,1973.5,1973.4,8.61739]
[1742381117262,3.2e-06,1973.5,1973.4,9.43959]
[1742381117462,3.2e-06,1973.5,1973.4,8.61739]
[1742381118571,3.2e-06,1973.5,1973.2,5.0679]
[1742381118572,3.08290607,1973.5,1973.2,5.0679]
[1742381118763,3.39119668,1973.5,1973.2,5.06782]
[1742381118960,3.39119668,1973.5,1973.3,3.0]
[1742381119164,3.08290607,1973.5,1973.3,8.06746]
[1742381119389,3.08290607,1973.5,1973.4,5.06739]
[1742381119781,3.08290607,1973.5,1973.3,8.06746]
[1742381119983,3.08290607,1973.5,1973.3,3.0]
[1742381119984,8.15004607,1973.5,1973.3,3.0]
[1742381120499,8.87439,1973.3,1972.8,0.36997897]
[1742381120663,3.08290287,1972.9,1972.7,5.06904]
[1742381120866,3.08290287,1972.9,1972.6,5.06939]
[1742381121066,3.08290287,1972.9,1972.6,10.13876]
[1742381121293,3.08290287,1972.9,1972.7,3.0]
[1742381121495,8.15161287,1972.9,1972.7,3.0]
[1742381121695,14.00176287,1972.9,1972.7,3.0]
[1742381121895,5.06967,1972.6,1972.3,6.905]
[1742381122101,3.08290287,1972.4,1972.3,11.9752]
[1742381122299,3.08290287,1972.6,1972.4,5.06992]
[1742381122663,3.08290287,1972.6,1972.3,6.905]
[1742381122664,3.08290287,1972.6,1972.3,17.04526]
[1742381122868,3.08290287,1972.4,1972.3,6.905]
[1742381123185,3.08290287,1972.4,1972.3,11.97522]
[1742381123386,0.8233,1972.5,1972.4,5.06996]
[1742381123895,0.8233,1972.5,1972.3,14.97522]
[1742381124078,0.8233,1972.5,1972.3,9.905]
[1742381124393,0.8233,1972.5,1972.3,8.07012]
[1742381124561,0.8233,1972.5,1972.3,3.0]
[1742381124967,3.08290287,1972.4,1972.3,3.0]
[1742381125665,0.8314,1972.2,1971.6,0.824]
[1742381125986,3.08290287,1972.2,1972.1,5.07073]
[1742381126388,0.7515,1972.1,1971.5,11.97524]
[1742381126586,3.08290287,1972.0,1971.9,5.07123]
[1742381126980,3.08290287,1972.0,1971.9,3.0]
[1742381127181,5.82228,1972.1,1971.9,3.0]
[1742381127378,5.82228,1972.1,1971.7,5.07158]
[1742381127379,3.08290287,1972.0,1971.7,5.07158]
[1742381127582,3.08290287,1971.8,1971.6,10.14379]
[1742381127776,3.08290287,1971.8,1971.7,8.07176]
[1742381128200,3.08290287,1971.8,1971.7,3.0]
[1742381128507,3.08290287,1971.8,1971.7,8.07176]
[1742381128694,3.08290287,1971.8,1971.7,3.0]
[1742381129274,3.08290287,1971.8,1971.4,5.07238]
[1742381129275,4.40547716,1971.8,1971.4,5.07238]
[1742381129471,3.08290287,1971.6,1971.5,5.07219]
[1742381130104,3.08290287,1971.8,1971.7,8.07176]
[1742381131075,3.08290287,1971.8,1971.7,14.97376]
[1742381131288,3.08290287,1972.0,1971.9,5.07125]
[1742381131601,3.08290287,1972.0,1971.7,14.9737]
[1742381131906,3.08290287,1971.8,1971.7,11.9737]
[1742381132074,3.08290287,1971.8,1971.7,6.902]
[1742381132275,3.08290287,1971.8,1971.7,11.97376]
[1742381133791,3.08290287,1972.0,1971.8,8.0714]
[1742381133986,3.08290287,1972.0,1971.9,8.07125]
[1742381134282,3.08290287,1972.1,1972.0,3.0]
[1742381134701,3.08290287,1972.1,1971.5,0.7544]
[1742381134702,44.799202,1970.6,1969.5,0.2483531]
[1742381135021,9.5548502,1970.5,1970.0,5.07593]
[1742381135224,3.08290287,1970.6,1970.4,5.07491]
[1742381135430,3.08290287,1970.9,1970.6,5.07444]
[1742381135577,5.07445,1970.7,1970.3,6.901]